fUSD/lending_fUSD_20240727
["ID","MTS","AMOUNT","RATE_DAILY","PERIOD"]
[333346111,1722063080495,-500.0,0.00010998,2]
[333346112,1722063080504,-500.0,0.00010998,2]
[333346113,1722063080513,-500.0,0.00010998,2]
[333346114,1722063080523,-563.93579599,0.00010998,2]
[333346115,1722063080532,-267.51,0.00010998,2]
[333346116,1722063080541,-1140.75,0.00010998,2]
[333346117,1722063080551,-1140.75,0.00010998,2]
[333346118,1722063080562,-1140.75,0.00010998,2]
[333346119,1722063080572,-1140.75,0.00010998,2]
[333346120,1722063080581,-1140.75,0.00010998,2]
[333346121,1722063080592,-1140.75,0.00010998,2]
[333346122,1722063080603,-1140.75,0.00010998,2]
[333346123,1722063080612,-1140.75,0.00010998,2]
[333346124,1722063080622,-1140.89,0.00010998,2]
[333346125,1722063080631,-529.72,0.00010998,2]
[333346126,1722063080640,-529.72,0.00010998,2]
[333346127,1722063080650,-529.72,0.00010998,2]
[333346128,1722063080660,-529.72,0.00010998,2]
[333346129,1722063080670,-529.72,0.00010998,2]
[333346130,1722063080679,-529.72,0.00010998,2]
[333346131,1722063080689,-529.72,0.00010998,2]
[333346132,1722063080699,-529.72,0.00010998,2]
[333346133,1722063080709,-529.72,0.00010998,2]
[333346134,1722063080719,-529.72,0.00010998,2]
[333346135,1722063080729,-529.72,0.00010998,2]
[333346136,1722063080739,-529.87,0.00010998,2]
[333346137,1722063080749,-543.07200667,0.00010998,2]
[333346138,1722063080758,-500.0,0.00010998,2]
[333346139,1722063080768,-500.0,0.00010998,2]
[333346140,1722063080779,-500.0,0.00010998,2]
[333346141,1722063080788,-500.0,0.00010998,2]
[333346142,1722063080798,-237.63,0.00010998,2]
[333346143,1722063080808,-605.6,0.00010998,2]
[333346144,1722063080819,-500.0,0.00010998,2]
[333346145,1722063080829,-598.05,0.00010998,2]
[333346146,1722063080840,-500.0,0.00010998,2]
[333346147,1722063080849,-500.0,0.00010998,2]
[333346148,1722063080859,-500.0,0.00010998,2]
[333346149,1722063080870,-500.0,0.00010998,2]
[333346150,1722063080879,-668.32,0.00010998,2]
[333346151,1722063080889,-500.0,0.00010998,2]
[333346152,1722063080903,-668.32,0.00010998,2]
[333346153,1722063080912,-422.87,0.00010998,2]
[333346154,1722063080922,-668.32,0.00010998,2]
[333346155,1722063080932,-668.32,0.00010998,2]
[333346156,1722063080941,-668.32,0.00010998,2]
[333346157,1722063080951,-668.32,0.00010998,2]
[333346158,1722063080961,-668.32,0.00010998,2]
[333346159,1722063080971,-668.32,0.00010998,2]
[333346160,1722063080981,-668.32,0.00010998,2]
[333346161,1722063080991,-668.44,0.00010998,2]
[333346162,1722063081001,-524.6,0.00010998,2]
[333346163,1722063081011,-524.6,0.00010998,2]
[333346164,1722063081021,-524.6,0.00010998,2]
[333346165,1722063081035,-524.6,0.00010998,2]
[333346166,1722063081045,-524.6,0.00010998,2]
[333346167,1722063081055,-524.6,0.00010998,2]
[333346168,1722063081065,-524.6,0.00010998,2]
[333346169,1722063081075,-524.6,0.00010998,2]
[333346170,1722063081085,-524.6,0.00010998,2]
[333346171,1722063081095,-524.62,0.00010998,2]
[333346172,1722063081105,-1205.75,0.00010998,2]
[333346173,1722063081116,-1205.75,0.00010998,2]
[333346174,1722063081126,-1205.75,0.00010998,2]
[333346175,1722063081136,-1205.75,0.00010998,2]
[333346176,1722063081147,-1205.75,0.00010998,2]
[333346177,1722063081157,-1205.75,0.00010998,2]
[333346178,1722063081167,-1205.75,0.00010998,2]
[333346179,1722063081178,-1205.75,0.00010998,2]
[333346180,1722063081188,-1205.84999998,0.00010998,2]
[333346181,1722063081199,-208.62,0.00010998,2]
[333346182,1722063081209,-500.0,0.00010998,2]
[333346183,1722063081219,-500.0,0.00010998,2]
[333346184,1722063081229,-500.0,0.00010998,2]
[333346185,1722063081239,-500.0,0.00010998,2]
[333346186,1722063081250,-500.0,0.00010998,2]
[333346187,1722063081261,-500.0,0.00010998,2]
[333346188,1722063081271,-500.0,0.00010998,2]
[333346189,1722063081281,-519.54,0.00010998,2]
[333346190,1722063081291,-673.26,0.00010998,2]
[333346191,1722063081301,-673.26,0.00010998,2]
[333346192,1722063081312,-673.26,0.00010998,2]
[333346193,1722063081321,-673.26,0.00010998,2]
[333346194,1722063081331,-673.26,0.00010998,2]
[333346195,1722063081341,-673.26,0.00010998,2]
[333346196,1722063081352,-673.26,0.00010998,2]
[333346197,1722063081362,-673.26,0.00010998,2]
[333346198,1722063081372,-673.26,0.00010998,2]
[333346199,1722063081384,-673.36,0.00010998,2]
[333346200,1722063081394,-321.14,0.00010998,2]
[333346201,1722063081404,-161.68,0.00010998,2]
[333346202,1722063081415,-500.0,0.00010998,2]
[333346203,1722063081425,-185.85,0.00010998,2]
[333346204,1722063081435,-500.0,0.00010998,2]
[333346205,1722063081446,-500.0,0.00010998,2]
[333346206,1722063081457,-500.0,0.00010998,2]
[333346207,1722063081468,-500.0,0.00010998,2]
[333346208,1722063081479,-500.0,0.00010998,2]
[333346209,1722063081489,-255.72,0.00010998,2]
[333346210,1722063081679,-532.29,0.00010998,2]
[333346211,1722063081689,-532.29,0.00010998,2]
[333346212,1722063081699,-532.29,0.00010998,2]
[333346213,1722063081710,-532.29,0.00010998,2]
[333346214,1722063081719,-532.29,0.00010998,2]
[333346215,1722063081731,-532.29,0.00010998,2]
[333346216,1722063081740,-532.29,0.00010998,2]
[333346217,1722063081750,-532.29,0.00010998,2]
[333346218,1722063081761,-532.29,0.00010998,2]
[333346219,1722063081771,-532.51,0.00010998,2]
[333346220,1722063081781,-500.0,0.00010998,2]
[333346221,1722063081792,-500.0,0.00010998,2]
[333346222,1722063081802,-500.0,0.00010998,2]
[333346223,1722063081812,-500.0,0.00010998,2]
[333346224,1722063081822,-500.0,0.00010998,2]
[333346225,1722063081832,-500.0,0.00010998,2]
[333346226,1722063081842,-389.07,0.00010998,2]
[333346227,1722063081852,-500.0,0.00010998,2]
[333346228,1722063081861,-500.0,0.00010998,2]
[333346229,1722063081871,-500.0,0.00010998,2]
[333346230,1722063081881,-500.0,0.00010998,2]
[333346231,1722063081891,-500.0,0.00010998,2]
[333346232,1722063081900,-500.0,0.00010998,2]
[333346233,1722063081910,-500.0,0.00010998,2]
[333346234,1722063081920,-219.24,0.00010998,2]
[333346235,1722063081931,-540.64,0.00010998,2]
[333346236,1722063081941,-540.64,0.00010998,2]
[333346237,1722063081950,-540.64,0.00010998,2]
[333346238,1722063081960,-540.64,0.00010998,2]
[333346239,1722063081969,-246.48,0.00010998,2]
[333346240,1722063081979,-540.64,0.00010998,2]
[333346241,1722063081989,-540.64,0.00010998,2]
[333346242,1722063081999,-540.64,0.00010998,2]
[333346243,1722063082009,-540.64,0.00010998,2]
[333346244,1722063082018,-540.64,0.00010998,2]
[333346245,1722063082032,-540.78,0.00010998,2]
[333346246,1722063082042,-500.0,0.00010998,2]
[333346247,1722063082052,-500.0,0.00010998,2]
[333346248,1722063082063,-500.0,0.00010998,2]
[333346249,1722063082074,-500.0,0.00010998,2]
[333346250,1722063082084,-500.0,0.00010998,2]
[333346251,1722063082095,-500.0,0.00010998,2]
[333346252,1722063082107,-174.87,0.00010998,2]
[333346253,1722063082118,-500.0,0.00010998,2]
[333346254,1722063082127,-500.0,0.00010998,2]
[333346255,1722063082137,-500.0,0.00010998,2]
[333346256,1722063082148,-229.14,0.00010998,2]
[333346257,1722063082158,-716.39,0.00010998,2]
[333346258,1722063082168,-716.39,0.00010998,2]
[333346259,1722063082178,-716.39,0.00010998,2]
[333346260,1722063082187,-716.39,0.00010998,2]
[333346261,1722063082198,-716.39,0.00010998,2]
[333346262,1722063082208,-716.39,0.00010998,2]
[333346263,1722063082218,-716.39,0.00010998,2]
[333346264,1722063082230,-716.39,0.00010998,2]
[333346265,1722063082241,-716.51,0.00010998,2]
[333346266,1722063082250,-583.38,0.00010998,2]
[333346267,1722063082260,-583.38,0.00010998,2]
[333346268,1722063082270,-583.38,0.00010998,2]
[333346269,1722063082281,-583.38,0.00010998,2]
[333346270,1722063082292,-583.38,0.00010998,2]
[333346271,1722063082303,-583.38,0.00010998,2]
[333346272,1722063082313,-583.38,0.00010998,2]
[333346273,1722063082323,-583.38,0.00010998,2]
[333346274,1722063082333,-583.38,0.00010998,2]
[333346275,1722063082343,-583.39,0.00010998,2]
[333346276,1722063082353,-792.25,0.00010998,2]
[333346277,1722063082363,-792.25,0.00010998,2]
[333346278,1722063082374,-792.25,0.00010998,2]
[333346279,1722063082383,-792.25,0.00010998,2]
[333346280,1722063082394,-792.25,0.00010998,2]
[333346281,1722063082404,-792.25,0.00010998,2]
[333346282,1722063082414,-792.25,0.00010998,2]
[333346283,1722063082425,-792.25,0.00010998,2]
[333346284,1722063082436,-792.31,0.00010998,2]
[333346285,1722063082446,-513.93,0.00010998,2]
[333346286,1722063082456,-513.93,0.00010998,2]
[333346287,1722063082466,-513.93,0.00010998,2]
[333346288,1722063082477,-513.93,0.00010998,2]
[333346289,1722063082487,-513.93,0.00010998,2]
[333346290,1722063082496,-513.93,0.00010998,2]
[333346291,1722063082506,-513.93,0.00010998,2]
[333346292,1722063082516,-513.93,0.00010998,2]
[333346293,1722063082526,-500.0,0.00010998,2]
[333346294,1722063082535,-388.84,0.00010998,2]
[333346295,1722063082545,-514.11,0.00010998,2]
[333346296,1722063082555,-810.04,0.00010998,2]
[333346297,1722063082565,-810.04,0.00010998,2]
[333346298,1722063082574,-810.04,0.00010998,2]
[333346299,1722063082584,-810.04,0.00010998,2]
[333346300,1722063082594,-810.04,0.00010998,2]
[333346301,1722063082604,-810.04,0.00010998,2]
[333346302,1722063082614,-810.04,0.00010998,2]
[333346303,1722063082624,-810.04,0.00010998,2]
[333346304,1722063082633,-810.04,0.00010998,2]
[333346305,1722063082643,-810.05,0.00010998,2]
[333346306,1722063082652,-500.0,0.00010998,2]
[333346307,1722063082662,-500.0,0.00010998,2]
[333346308,1722063082671,-500.0,0.00010998,2]
[333346309,1722063082681,-500.0,0.00010998,2]
[333346310,1722063082691,-646.83,0.00010998,2]
[333346311,1722063082701,-562.69,0.00010998,2]
[333346312,1722063082711,-1037.68,0.00010998,2]
[333346313,1722063082721,-562.69,0.00010998,2]
[333346314,1722063082730,-1037.68,0.00010998,2]
[333346315,1722063082740,-562.69,0.00010998,2]
[333346316,1722063082749,-1037.68,0.00010998,2]
[333346317,1722063082759,-562.69,0.00010998,2]
[333346318,1722063082769,-1037.68,0.00010998,2]
[333346319,1722063082778,-562.69,0.00010998,2]
[333346320,1722063082787,-1037.68,0.00010998,2]
[333346321,1722063082797,-562.69,0.00010998,2]
[333346322,1722063082807,-1037.68,0.00010998,2]
[333346323,1722063082816,-562.69,0.00010998,2]
[333346324,1722063082825,-562.69,0.00010998,2]
[333346325,1722063082835,-1037.68,0.00010998,2]
[333346326,1722063082845,-1037.68,0.00010998,2]
[333346327,1722063082855,-562.69,0.00010998,2]
[333346328,1722063082865,-1037.74,0.00010998,2]
[333346329,1722063082875,-562.91,0.00010998,2]
[333346330,1722063082885,-1923.38,0.00010998,2]
[333346331,1722063082895,-1923.38,0.00010998,2]
[333346332,1722063082905,-1923.38,0.00010998,2]
[333346333,1722063082915,-1923.38,0.00010998,2]
[333346334,1722063082924,-1923.38,0.00010998,2]
[333346335,1722063082934,-1923.38,0.00010998,2]
[333346336,1722063082943,-1923.38,0.00010998,2]
[333346337,1722063082953,-709.4,0.00010998,2]
[333346338,1722063082963,-1923.38,0.00010998,2]
[333346339,1722063082972,-709.4,0.00010998,2]
[333346340,1722063082983,-1923.6039274,0.00010998,2]
[333346341,1722063082992,-709.4,0.00010998,2]
[333346342,1722063083002,-709.4,0.00010998,2]
[333346343,1722063083012,-709.4,0.00010998,2]
[333346344,1722063083023,-709.4,0.00010998,2]
[333346345,1722063083035,-709.4,0.00010998,2]
[333346346,1722063083045,-709.4,0.00010998,2]
[333346347,1722063083054,-709.54,0.00010998,2]
[333346348,1722063083065,-500.0,0.00010998,2]
[333346349,1722063083074,-500.0,0.00010998,2]
[333346350,1722063083084,-500.0,0.00010998,2]
[333346351,1722063083094,-463.8,0.00010998,2]
[333346352,1722063083104,-7302.83,0.00010998,2]
[333346353,1722063083114,-7302.83,0.00010998,2]
[333346354,1722063083125,-7302.83,0.00010998,2]
[333346355,1722063083135,-7302.83,0.00010998,2]
[333346356,1722063083145,-7302.83,0.00010998,2]
[333346357,1722063083155,-7302.83,0.00010998,2]
[333346358,1722063083165,-7302.83,0.00010998,2]
[333346359,1722063083176,-614.98,0.00010998,2]
[333346360,1722063083186,-7302.83,0.00010998,2]
[333346361,1722063083196,-614.98,0.00010998,2]
[333346362,1722063083205,-7302.94999999,0.00010998,2]
[333346363,1722063083215,-614.98,0.00010998,2]
[333346364,1722063083225,-1559.86,0.00010998,2]
[333346365,1722063083234,-614.98,0.00010998,2]
[333346366,1722063083244,-1559.86,0.00010998,2]
[333346367,1722063083253,-614.98,0.00010998,2]
[333346368,1722063083263,-433.91035572,0.00010998,2]
[333346369,1722063083666,-1125.94964428,0.00010998,2]
[333346370,1722063083676,-558.58035572,0.00010998,2]
[333346371,1722063083689,-56.39964428,0.00010998,2]
[333346372,1722063083699,-1559.86,0.00010998,2]
[333346373,1722063083708,-614.98,0.00010998,2]
[333346374,1722063083717,-1559.86,0.00010998,2]
[333346375,1722063083727,-614.98,0.00010998,2]
[333346376,1722063083736,-1559.86,0.00010998,2]
[333346377,1722063083745,-614.98,0.00010998,2]
[333346378,1722063083755,-1559.86,0.00010998,2]
[333346379,1722063083764,-1559.86,0.00010998,2]
[333346380,1722063083773,-615.06,0.00010998,2]
[333346381,1722063083783,-1559.89,0.00010998,2]
[333346382,1722063083792,-670.81,0.00010998,2]
[333346383,1722063083802,-670.81,0.00010998,2]
[333346384,1722063083812,-39.66767591,0.00010998,2]
[333346385,1722063083824,-420.40232409,0.00010998,2]
[333346386,1722063083834,-489.59767591,0.00010998,2]
[333346387,1722063083846,-181.21232409,0.00010998,2]
[333346388,1722063083855,-309.64702504,0.00010998,2]
[333346389,1722063083866,-361.16297496,0.00010998,2]
[333346390,1722063083933,-283.83202496,0.00010998,2]
[333346391,1722063083959,-386.97797504,0.00010998,2]
[333346392,1722063083970,-173.76851452,0.00010998,2]
[333346393,1722063084062,-252.671987,0.00010997,2]
[333346394,1722063084073,-151.0,0.00010997,2]
[333346395,1722063084084,-34.00322455,0.00010997,2]
[333346396,1722063084101,-116.99677545,0.00010997,2]
[333346397,1722063084110,-419.28323768,0.00010998,2]
[333346398,1722063084122,-77.7582478,0.00010998,2]
[333346399,1722063084131,-670.89,0.00010998,2]
[333346400,1722063084142,-898.64,0.00010998,2]
[333346401,1722063084152,-898.64,0.00010998,2]
[333346402,1722063084163,-1711.73,0.00010998,2]
[333346403,1722063084173,-898.64,0.00010998,2]
[333346404,1722063084183,-1711.73,0.00010998,2]
[333346405,1722063084194,-898.64,0.00010998,2]
[333346406,1722063084203,-501.23,0.00010998,2]
[333346407,1722063084213,-1711.73,0.00010998,2]
[333346408,1722063084222,-898.64,0.00010998,2]
[333346409,1722063084232,-1711.73,0.00010998,2]
[333346410,1722063084241,-501.23,0.00010998,2]
[333346411,1722063084251,-898.64,0.00010998,2]
[333346412,1722063084261,-1711.73,0.00010998,2]
[333346413,1722063084271,-898.64,0.00010998,2]
[333346414,1722063084282,-1711.73,0.00010998,2]
[333346415,1722063084291,-898.64,0.00010998,2]
[333346416,1722063084300,-1711.73,0.00010998,2]
[333346417,1722063084311,-1711.73,0.00010998,2]
[333346418,1722063084320,-898.64,0.00010998,2]
[333346419,1722063084330,-1711.75,0.00010998,2]
[333346420,1722063084339,-898.85460565,0.00010998,2]
[333346421,1722063084348,-501.23,0.00010998,2]
[333346422,1722063084357,-501.23,0.00010998,2]
[333346423,1722063084367,-501.23,0.00010998,2]
[333346424,1722063084377,-501.23,0.00010998,2]
[333346425,1722063084388,-501.23,0.00010998,2]
[333346426,1722063084398,-501.23,0.00010998,2]
[333346427,1722063084408,-501.23,0.00010998,2]
[333346428,1722063084419,-348.07714655,0.00010998,2]
[333346429,1722063084432,-153.21285345,0.00010998,2]
[333346430,1722063084442,-2172.13637596,0.00010998,2]
[333346431,1722063084453,-700.0,0.00010998,2]
[333346432,1722063084464,-302.23,0.00010998,2]
[333346433,1722063084475,-300.1,0.00010998,2]
[333346434,1722063084487,-301.132,0.00010998,2]
[333346435,1722063084498,-274.264,0.00010998,2]
[333346436,1722063084508,-309.865,0.00010998,2]
[333346437,1722063084520,-1594.31262404,0.00010998,2]
[333346438,1722063084529,-4365.84091578,0.00010998,2]
[333346439,1722063084540,-1128.54428404,0.00010998,2]
[333346440,1722063084551,-459.65480018,0.00010998,2]
[333346441,1722063084560,-500.0,0.00010998,2]
[333346442,1722063084570,-1875.34519982,0.00010998,2]
[333346443,1722063084583,-1083.10830449,0.00010998,2]
[333346444,1722063084596,-516.50550932,0.00010998,2]
[333346445,1722063084615,-727.20149302,0.00010998,2]
[333346446,1722063084627,-1751.87949335,0.00010998,2]
[333346447,1722063084636,-5954.04,0.00010998,2]
[333346448,1722063084646,-230.95,0.00010998,2]
[333346449,1722063084657,-5954.04,0.00010998,2]
[333346450,1722063084667,-5954.04,0.00010998,2]
[333346451,1722063084676,-5954.04,0.00010998,2]
[333346452,1722063084686,-500.0,0.00010998,2]
[333346453,1722063084695,-5954.04,0.00010998,2]
[333346454,1722063084706,-500.0,0.00010998,2]
[333346455,1722063084717,-5954.05517817,0.00010998,2]
[333346456,1722063084727,-500.0,0.00010998,2]
[333346457,1722063084736,-500.0,0.00010998,2]
[333346458,1722063084746,-500.0,0.00010998,2]
[333346459,1722063084755,-565.88260564,0.00010998,2]
[333346460,1722063084765,-781.8,0.00010998,2]
[333346461,1722063084776,-781.8,0.00010998,2]
[333346462,1722063084785,-781.8,0.00010998,2]
[333346463,1722063084795,-1631.18,0.00010998,2]
[333346464,1722063084804,-781.8,0.00010998,2]
[333346465,1722063084815,-1631.18,0.00010998,2]
[333346466,1722063084824,-781.8,0.00010998,2]
[333346467,1722063084833,-1631.18,0.00010998,2]
[333346468,1722063084842,-781.8,0.00010998,2]
[333346469,1722063084851,-1631.18,0.00010998,2]
[333346470,1722063084860,-781.8,0.00010998,2]
[333346471,1722063084870,-1631.18,0.00010998,2]
[333346472,1722063084881,-781.8,0.00010998,2]
[333346473,1722063084890,-1631.18,0.00010998,2]
[333346474,1722063084899,-781.93062225,0.00010998,2]
[333346475,1722063084910,-1631.18,0.00010998,2]
[333346476,1722063084919,-1631.18,0.00010998,2]
[333346477,1722063084928,-1631.39,0.00010998,2]
[333346478,1722063084937,-58.60157312,0.00010998,2]
[333346479,1722063084951,-1976.38842688,0.00010998,2]
[333346480,1722063084960,-2034.99,0.00010998,2]
[333346481,1722063084969,-2034.99,0.00010998,2]
[333346482,1722063084978,-2034.99,0.00010998,2]
[333346483,1722063084987,-2034.99,0.00010998,2]
[333346484,1722063084997,-2034.99,0.00010998,2]
[333346485,1722063085007,-2034.99,0.00010998,2]
[333346486,1722063085018,-2034.99,0.00010998,2]
[333346487,1722063085030,-2034.99,0.00010998,2]
[333346488,1722063085039,-2035.07,0.00010998,2]
[333346489,1722063085048,-1248.71,0.00010998,2]
[333346490,1722063085060,-1248.71,0.00010998,2]
[333346491,1722063085068,-1248.71,0.00010998,2]
[333346492,1722063085078,-1248.71,0.00010998,2]
[333346493,1722063085087,-541.46,0.00010998,2]
[333346494,1722063085096,-1248.71,0.00010998,2]
[333346495,1722063085105,-541.46,0.00010998,2]
[333346496,1722063085115,-1248.71,0.00010998,2]
[333346497,1722063085124,-541.46,0.00010998,2]
[333346498,1722063085133,-1248.71,0.00010998,2]
[333346499,1722063085143,-541.46,0.00010998,2]
[333346500,1722063085153,-541.46,0.00010998,2]
[333346501,1722063085163,-1248.71,0.00010998,2]
[333346502,1722063085173,-541.46,0.00010998,2]
[333346503,1722063085182,-1248.71,0.00010998,2]
[333346504,1722063085192,-541.46,0.00010998,2]
[333346505,1722063085202,-541.46,0.00010998,2]
[333346506,1722063085212,-541.56,0.00010998,2]
[333346507,1722063085221,-1248.91,0.00010998,2]
[333346508,1722063085230,-1747.11,0.00010998,2]
[333346509,1722063085240,-1747.11,0.00010998,2]
[333346510,1722063085250,-1747.11,0.00010998,2]
[333346511,1722063085259,-1747.11,0.00010998,2]
[333346512,1722063085268,-1747.11,0.00010998,2]
[333346513,1722063085278,-1747.11,0.00010998,2]
[333346514,1722063085288,-1747.11,0.00010998,2]
[333346515,1722063085297,-1747.11,0.00010998,2]
[333346516,1722063085307,-1747.28,0.00010998,2]
[333346517,1722063085317,-620.64,0.00010998,2]
[333346518,1722063085327,-620.64,0.00010998,2]
[333346519,1722063085337,-620.64,0.00010998,2]
[333346520,1722063085347,-620.64,0.00010998,2]
[333346521,1722063085356,-620.64,0.00010998,2]
[333346522,1722063085366,-620.64,0.00010998,2]
[333346523,1722063085376,-620.64,0.00010998,2]
[333346524,1722063085386,-620.64,0.00010998,2]
[333346525,1722063085397,-620.76,0.00010998,2]
[333346526,1722063085407,-2105.67,0.00010998,2]
[333346527,1722063085417,-2105.67,0.00010998,2]
[333346528,1722063085427,-2105.67,0.00010998,2]
[333346529,1722063085439,-2105.67,0.00010998,2]
[333346530,1722063085448,-2105.67,0.00010998,2]
[333346531,1722063085458,-820.38,0.00010998,2]
[333346532,1722063085468,-2105.67,0.00010998,2]
[333346533,1722063085478,-820.38,0.00010998,2]
[333346534,1722063085487,-2105.67,0.00010998,2]
[333346535,1722063085497,-820.38,0.00010998,2]
[333346536,1722063085507,-1285.7184361,0.00010998,2]
[333346537,1722063085523,-819.9515639,0.00010998,2]
[333346538,1722063085533,-820.38,0.00010998,2]
[333346539,1722063085543,-2105.84,0.00010998,2]
[333346540,1722063085552,-820.38,0.00010998,2]
[333346541,1722063085563,-820.38,0.00010998,2]
[333346542,1722063085573,-820.38,0.00010998,2]
[333346543,1722063085583,-820.38,0.00010998,2]
[333346544,1722063085594,-820.38,0.00010998,2]
[333346545,1722063085605,-820.56,0.00010998,2]
[333346546,1722063085616,-500.0,0.00010998,2]
[333346547,1722063085626,-359.700001,0.00010998,2]
[333346548,1722063085637,-500.0,0.00010998,2]
[333346549,1722063085647,-500.0,0.00010998,2]
[333346550,1722063085659,-441.56,0.00010998,2]
[333346551,1722063085670,-500.0,0.00010998,2]
[333346552,1722063085680,-247.6,0.00010998,2]
[333346553,1722063085689,-716.39,0.00010998,2]
[333346554,1722063085700,-716.39,0.00010998,2]
[333346555,1722063085712,-716.39,0.00010998,2]
[333346556,1722063085724,-716.39,0.00010998,2]
[333346557,1722063085736,-716.39,0.00010998,2]
[333346558,1722063085747,-716.39,0.00010998,2]
[333346559,1722063085757,-716.51903535,0.00010998,2]
[333346560,1722063085767,-792.25,0.00010998,2]
[333346561,1722063085778,-792.25,0.00010998,2]
[333346562,1722063085789,-792.25,0.00010998,2]
[333346563,1722063085800,-792.25,0.00010998,2]
[333346564,1722063085812,-792.25,0.00010998,2]
[333346565,1722063085822,-792.25,0.00010998,2]
[333346566,1722063085833,-792.36103751,0.00010998,2]
[333346567,1722063085844,-151.0,0.00010998,2]
[333346568,1722063085856,-10560.21,0.00010998,2]
[333346569,1722063085868,-10560.21,0.00010998,2]
[333346570,1722063085879,-10560.21,0.00010998,2]
[333346571,1722063085890,-10560.21,0.00010998,2]
[333346572,1722063085901,-10560.21,0.00010998,2]
[333346573,1722063085911,-10560.21,0.00010998,2]
[333346574,1722063085921,-10560.21,0.00010998,2]
[333346575,1722063085931,-10560.21,0.00010998,2]
[333346576,1722063085943,-10560.43752212,0.00010998,2]
[333346577,1722063085954,-3504.45,0.00010998,2]
[333346578,1722063085965,-3504.45,0.00010998,2]
[333346579,1722063085975,-3504.45,0.00010998,2]
[333346580,1722063085985,-3504.45,0.00010998,2]
[333346581,1722063085996,-3504.45,0.00010998,2]
[333346582,1722063086006,-3504.45,0.00010998,2]
[333346583,1722063086018,-3504.59470217,0.00010998,2]
[333346584,1722063086033,-3738.99,0.00010998,2]
[333346585,1722063086044,-3738.99,0.00010998,2]
[333346586,1722063086054,-3738.99,0.00010998,2]
[333346587,1722063086065,-3738.99,0.00010998,2]
[333346588,1722063086075,-3738.99,0.00010998,2]
[333346589,1722063086086,-3738.99,0.00010998,2]
[333346590,1722063086096,-3738.99,0.00010998,2]
[333346591,1722063086109,-3738.99,0.00010998,2]
[333346592,1722063086120,-681.32,0.00010998,2]
[333346593,1722063086132,-3739.06128408,0.00010998,2]
[333346594,1722063086142,-681.32,0.00010998,2]
[333346595,1722063086152,-681.32,0.00010998,2]
[333346596,1722063086162,-681.32,0.00010998,2]
[333346597,1722063086172,-681.32,0.00010998,2]
[333346598,1722063086182,-681.32,0.00010998,2]
[333346599,1722063086193,-681.35885644,0.00010998,2]
[333346600,1722063086203,-965.09,0.00010998,2]
[333346601,1722063086213,-965.09,0.00010998,2]
[333346602,1722063086224,-965.09,0.00010998,2]
[333346603,1722063086234,-965.09,0.00010998,2]
[333346604,1722063086244,-965.09,0.00010998,2]
[333346605,1722063086254,-965.09,0.00010998,2]
[333346606,1722063086264,-3500.4,0.00010998,2]
[333346607,1722063086274,-965.09981104,0.00010998,2]
[333346608,1722063086283,-3500.4,0.00010998,2]
[333346609,1722063086294,-1178.4,0.00010998,2]
[333346610,1722063086305,-3500.4,0.00010998,2]